bitfinex/quotes_ETHUSD_20250425
["timestamp","ask_amount","ask_price","bid_price","bid_amount"]
[1745586866675,0.19200297,1772.3,1772.2,5.64270398]
[1745586866822,0.19200297,1772.3,1772.2,6.46260398]
[1745586868364,0.19200297,1772.3,1772.2,0.8199]
[1745586868567,0.19200297,1772.3,1772.2,6.46260398]
[1745586869773,0.19200297,1772.5,1772.4,5.64206725]
[1745586870267,0.19200297,1772.5,1772.4,6.43156725]
[1745586870640,0.19200297,1772.6,1772.5,5.64174894]
[1745586871867,0.19200297,1772.6,1772.4,6.43150623]
[1745586872063,0.19200297,1772.5,1772.4,6.43150623]
[1745586872363,0.19200297,1772.6,1772.5,5.64174894]
[1745586872775,0.19200297,1772.8,1772.6,5.64119346]
[1745586873070,0.19200297,1772.8,1772.7,6.1996]
[1745586878083,0.05,1772.9,1772.8,5.64079422]
[1745586878286,0.05,1772.9,1772.8,6.47369422]
[1745586878578,0.05,1772.9,1772.8,2.58847156]
[1745586878777,0.05,1772.9,1772.8,8.22926578]
[1745586882561,0.05,1772.9,1772.8,11.22926578]
[1745586883482,0.05,1772.9,1772.8,11.65098242]
[1745586888411,0.05,1772.9,1772.8,12.20098242]
[1745586888569,0.19200297,1773.4,1773.3,5.63920374]
[1745586888900,0.19200297,1773.6,1773.3,6.79122037]
[1745586889208,0.19200297,1773.7,1773.6,5.63824988]
[1745586889414,0.19200297,1773.6,1773.3,12.43035974]
[1745586889564,0.19200297,1773.6,1773.5,5.6385678]
[1745586889760,0.19200297,1773.6,1773.5,6.76629972]
[1745586890002,0.19200297,1773.7,1773.6,5.63824988]
[1745586890509,0.19200297,1773.7,1773.5,1.12773192]
[1745586890710,0.19200297,1773.7,1773.6,5.63824988]
[1745586890881,0.19200297,1773.7,1773.6,6.40504988]
[1745586891086,0.19200297,1773.7,1773.6,7.72216382]
[1745586891915,0.19200297,1773.8,1773.7,5.637932]
[1745586892148,0.19200297,1773.8,1773.7,5.438]
[1745586892268,0.19200297,1773.8,1773.7,11.075932]
[1745586892462,0.19200297,1773.8,1773.7,5.438]
[1745586892816,0.19200297,1773.8,1773.7,12.39192898]
[1745586893403,0.05,1773.9,1773.7,12.39192898]
[1745586893404,0.24200297,1773.9,1773.8,5.63761416]
[1745586894202,0.05,1773.9,1773.8,5.63761416]
[1745586894891,0.05,1773.9,1773.8,6.40161416]
[1745586897028,0.05,1773.9,1773.8,5.63761416]
[1745586897231,0.05,1773.9,1773.8,12.87756847]
[1745586897395,0.24200297,1773.9,1773.8,7.23995431]
[1745586898024,0.24200297,1773.9,1773.8,12.87756847]
[1745586898530,0.24200297,1773.9,1773.8,7.23995431]
[1745586900832,0.24200297,1773.9,1773.8,12.87756847]
[1745586901640,1.64302059,1773.9,1773.8,5.437]
[1745586902004,1.64302059,1773.9,1773.5,16.916]
[1745586902005,0.19200297,1773.6,1773.5,16.916]
[1745586902341,1.44302059,1773.6,1773.5,22.352]
[1745586902715,1.59302059,1773.6,1773.5,22.352]
[1745586903327,0.19200297,1773.7,1773.6,5.63824988]
[1745586903739,0.19200297,1773.7,1773.5,30.78965538]
[1745586903740,0.19200297,1773.7,1773.5,30.78944796]
[1745586904046,0.19200297,1773.6,1773.5,30.78944796]
[1745586904446,0.19200297,1773.6,1773.5,22.352]
[1745586905247,0.19200297,1773.6,1773.5,27.9905678]
[1745586906613,0.19200297,1773.6,1773.5,22.352]
[1745586907020,0.19200297,1773.6,1773.5,27.9905678]
[1745586907215,0.19200297,1773.6,1773.5,22.352]
[1745586907543,0.19200297,1773.6,1773.5,27.9905678]
[1745586907728,0.19200297,1773.7,1773.6,5.63824988]
[1745586908055,0.19200297,1773.7,1773.5,27.99037142]
[1745586908227,0.19200297,1773.6,1773.5,22.352]
[1745586908617,0.19200297,1773.6,1773.5,5.436]
[1745586909149,0.19200297,1773.6,1773.2,6.42873896]
[1745586909150,0.19200297,1773.4,1773.2,5.63933896]
[1745586909327,1.40101762,1773.6,1773.2,5.63933896]
[1745586909328,0.19200297,1773.3,1773.2,5.63933896]
[1745586909529,0.19200297,1773.3,1773.2,12.19824347]
[1745586910854,0.19200297,1773.3,1773.2,6.55890451]
[1745586911067,0.19200297,1773.3,1773.2,12.19842627]
[1745586911772,0.19200297,1773.3,1773.2,5.431]
[1745586913137,0.19200297,1773.3,1773.2,11.07052176]
[1745586914069,0.19200297,1773.3,1773.2,5.431]
[1745586914643,0.19200297,1773.2,1773.0,22.55205335]
[1745586914971,0.19200297,1773.2,1773.1,5.431]
[1745586918371,0.19200297,1773.2,1773.1,13.30513982]
[1745586918671,0.19200297,1773.3,1773.2,5.63952176]
[1745586919275,0.19200297,1773.6,1773.4,5.63888575]
[1745586919455,0.19200297,1773.6,1773.5,11.0705678]
[1745586919632,0.19200297,1773.6,1773.5,12.7414989]
[1745586922875,0.05,1773.9,1773.8,5.63761416]
[1745586923377,0.05,1773.9,1773.8,6.41001416]
[1745586923675,0.05,1773.9,1773.8,5.63761416]
[1745586923863,0.05,1773.9,1773.8,6.76516878]
[1745586924741,0.05,1773.9,1773.7,5.63779977]
[1745586924942,0.05,1773.9,1773.8,5.431]
[1745586925474,0.24200297,1773.9,1773.8,5.431]
[1745586927382,0.39200297,1773.9,1773.8,5.431]
[1745586928495,0.24200297,1773.9,1773.8,5.431]
[1745586929577,0.24200297,1773.9,1773.8,11.06861416]
[1745586929806,0.24200297,1773.9,1773.8,12.17547558]
[1745586929972,0.24200297,1773.9,1773.8,6.53786142]
[1745586930203,0.24200297,1773.9,1773.8,12.17547558]
[1745586930505,0.24200297,1773.9,1773.8,6.53786142]
[1745586931103,0.24200297,1773.9,1773.8,5.431]
[1745586932363,0.19200297,1773.6,1773.5,5.431]
[1745586932567,1.44302059,1773.6,1773.5,5.431]
[1745586932799,0.19200297,1773.6,1773.5,5.431]
[1745586933004,0.19200297,1773.7,1773.6,5.63824988]
[1745586933369,0.19200297,1773.8,1773.7,5.637932]
[1745586933681,0.19200297,1773.8,1773.6,5.63805561]
[1745586934075,0.19200297,1773.7,1773.6,5.63805561]
[1745586934482,0.05,1773.9,1773.8,5.63761416]
[1745586934675,0.05,1773.9,1773.8,6.84364878]
[1745586934875,0.05,1773.9,1773.8,7.62844878]
[1745586937075,10.97824096,1775.0,1774.3,0.8281]
[1745586937281,10.97824096,1775.0,1774.5,5.63525091]
[1745586937282,0.19200297,1774.6,1774.5,5.63525091]
[1745586937503,0.19200297,1774.5,1774.4,11.05951437]
[1745586937814,0.19200297,1774.6,1774.4,11.05951437]
[1745586938124,0.19200297,1774.5,1774.4,11.05951437]
[1745586938473,0.19200297,1774.6,1774.4,11.05951437]
[1745586938679,0.19200297,1774.5,1774.4,11.05947322]
[1745586938892,0.19200297,1774.5,1774.4,12.81181409]
[1745586939102,0.19200297,1774.5,1774.4,5.424]
[1745586940414,0.19200297,1774.4,1774.3,5.63580322]
[1745586940615,0.19200297,1774.4,1774.3,11.05880322]
[1745586941182,0.19200297,1774.6,1774.5,5.63539025]
[1745586941634,0.19200297,1774.7,1774.4,5.63570784]
[1745586941811,0.19200297,1774.8,1774.7,5.63458781]
[1745586942020,0.19200297,1774.8,1774.7,11.05758781]
[1745586942191,0.19200297,1774.8,1774.7,5.423]
[1745586942387,0.19200297,1774.8,1774.7,11.05775516]
[1745586942933,0.19200297,1774.8,1774.7,5.423]
[1745586943501,0.34200297,1774.8,1774.7,5.423]
[1745586947087,0.19200297,1774.4,1774.1,23.37235464]
[1745586947401,0.19200297,1774.4,1774.2,5.422]
[1745586947736,0.19200297,1774.3,1774.2,5.422]
[1745586948425,0.19200297,1774.3,1774.2,11.05834314]
[1745586949036,0.19200297,1774.3,1774.2,11.81534314]
[1745586950552,0.19200297,1774.3,1774.2,6.179]
[1745586950734,0.19200297,1774.3,1774.2,5.422]
[1745586952759,0.19200297,1774.3,1774.2,13.85518733]
[1745586952918,0.19200297,1774.5,1774.3,5.63602547]
[1745586953107,0.19200297,1774.4,1774.3,5.63602547]
[1745586953308,0.19200297,1774.5,1774.4,5.63570784]
[1745586953531,0.19200297,1774.5,1774.3,5.63584401]
[1745586953728,0.19200297,1774.5,1774.3,7.66791765]
[1745586953942,0.19200297,1774.4,1774.2,8.21884419]
[1745586954612,0.19200297,1774.4,1774.2,19.49130245]
[1745586954947,0.19200297,1774.4,1774.3,5.63602547]
[1745586955744,0.19200297,1774.5,1774.3,5.63602547]
[1745586955906,0.19200297,1774.5,1774.3,11.27160699]
[1745586956111,0.19200297,1774.5,1774.3,7.58484236]
[1745586956533,0.19200297,1774.4,1774.3,7.58484236]
[1745586958146,7.25101762,1774.8,1774.3,7.58484236]
[1745586958147,0.19200297,1774.6,1774.5,5.63539025]
[1745586958348,0.19200297,1774.5,1774.4,6.38786444]
[1745586960483,0.19200297,1774.5,1774.4,6.3878388]
[1745586960680,0.19200297,1774.6,1774.5,5.63539025]
[1745586960885,0.19200297,1774.6,1774.5,11.05739025]
[1745586961049,0.19200297,1774.6,1774.5,5.422]
[1745586962782,0.34200297,1774.6,1774.5,5.422]
[1745586963710,0.19200297,1774.6,1774.5,11.05739025]
[1745586963883,0.19200297,1774.6,1774.5,12.72669145]
[1745586964054,0.19200297,1774.8,1774.6,5.63507269]
[1745586964253,0.19200297,1774.7,1774.6,5.63507269]
[1745586964650,0.19200297,1774.8,1774.6,11.26993559]
[1745586964854,0.19200297,1774.7,1774.6,5.6348629]
[1745586965057,0.19200297,1774.7,1774.6,7.54970386]
[1745586965285,0.19200297,1774.8,1774.7,5.63475516]
[1745586965789,0.19200297,1774.8,1774.6,7.54970386]
[1745586965958,0.19200297,1774.8,1774.6,13.18457847]
[1745586966279,0.19200297,1774.8,1774.6,7.54970386]
[1745586966593,0.19200297,1774.8,1774.7,0.75497039]
[1745586966775,0.19200297,1774.8,1774.6,5.6348629]
[1745586966776,0.19200297,1774.8,1774.5,11.84420773]
[1745586966983,0.31840176,1774.8,1774.5,11.84420773]
[1745586967289,0.19200297,1774.6,1774.5,11.84420773]
[1745586967982,0.19200297,1774.6,1774.5,11.84420773]
[1745586968502,0.19200297,1774.7,1774.6,5.63507269]
[1745586969166,0.19200297,1774.7,1774.5,11.84420773]
[1745586969389,0.19200297,1774.7,1774.5,13.59218367]
[1745586969790,0.19200297,1774.6,1774.5,13.59218367]
[1745586969963,0.19200297,1774.6,1774.5,7.95697594]
[1745586970182,0.19200297,1774.6,1774.5,13.59236619]
[1745586970888,0.19200297,1774.7,1774.6,5.63507269]
[1745586971093,0.19200297,1774.7,1774.6,7.55781658]
[1745586971494,0.19200297,1774.8,1774.6,7.55781658]
[1745586971695,0.19200297,1774.8,1774.7,5.63475516]
[1745586972000,0.10735437,1774.8,1774.7,5.63475516]
[1745586972207,0.10735437,1774.8,1774.7,6.45965516]
[1745586972382,0.24200297,1774.9,1774.8,5.63443768]
[1745586972564,0.05,1774.9,1774.8,5.63443768]
[1745586972769,0.24200297,1774.9,1774.7,7.86125547]
[1745586973085,0.24200297,1774.9,1774.7,2.22664717]
[1745586973404,0.24200297,1774.9,1774.7,0.8249]
[1745586973599,0.24200297,1774.9,1774.7,6.45952688]
[1745586973799,0.24200297,1774.9,1774.7,6.459439]
[1745586974002,0.24200297,1774.9,1774.7,12.09398836]
[1745586974300,0.24200297,1774.9,1774.6,11.26969237]
[1745586974483,0.24200297,1774.9,1774.7,6.76148696]
[1745586974884,0.24200297,1774.9,1774.7,6.76172241]
[1745586975509,0.24200297,1774.9,1774.7,6.76152281]
[1745586975708,0.24200297,1774.9,1774.7,6.7614987]
[1745586976302,0.24200297,1774.9,1774.8,5.63443768]
[1745586976508,0.24200297,1774.9,1774.8,6.87403132]
[1745586976707,0.35156492,1774.9,1774.8,6.87403132]
[1745586976908,0.35156492,1774.9,1774.8,1.23959364]
[1745586977110,0.35156492,1774.9,1774.8,6.87403132]
[1745586978328,0.24200297,1774.9,1774.8,6.87403132]
[1745586980408,0.24200297,1774.9,1774.8,1.23959364]
[1745586980616,0.19200297,1774.6,1774.5,11.05719763]
[1745586980912,0.19200297,1774.6,1774.5,5.422]
[1745586981295,0.19200297,1774.6,1774.5,11.05739025]
[1745586981696,0.19200297,1774.6,1774.5,5.422]
[1745586982430,0.19200297,1774.6,1774.5,12.24215879]
[1745586983154,0.19200297,1774.8,1774.7,5.63475516]
[1745586983376,0.05,1774.9,1774.8,6.39043768]
[1745586984018,0.05,1774.9,1774.7,5.63475516]
[1745586984219,0.19200297,1774.8,1774.7,5.63475516]
[1745586984433,0.19200297,1774.8,1774.7,6.8373251]
[1745586985141,0.19200297,1774.8,1774.7,1.20256994]
[1745586985541,0.19200297,1774.8,1774.7,5.63475516]
[1745586985854,0.19200297,1774.8,1774.6,0.756]
[1745586986054,0.19200297,1774.8,1774.6,6.39081124]
[1745586986246,0.19200297,1774.8,1774.6,12.02570585]
[1745586986434,0.19200297,1774.8,1774.6,12.02570159]
[1745586986629,0.19200297,1774.8,1774.6,8.25405825]
[1745586986834,0.19200297,1774.8,1774.6,7.49805825]
[1745586987451,0.19200297,1774.6,1774.5,12.24197629]
[1745586988644,0.19200297,1774.6,1774.5,12.24215879]
[1745586989155,0.24200297,1774.9,1774.6,5.63507269]
[1745586989359,0.05,1774.9,1774.8,5.63443768]
[1745586989524,0.24200297,1774.9,1774.8,5.63443768]
[1745586989725,0.24200297,1774.9,1774.8,6.76134276]
[1745586990371,0.05,1774.9,1774.8,7.54954276]
[1745586991438,0.24200297,1774.9,1774.8,1.12690508]
[1745586991649,0.24200297,1774.9,1774.7,5.63461154]
[1745586991823,0.24200297,1774.9,1774.8,11.04743768]
[1745586994653,0.24200297,1774.9,1774.8,5.413]
[1745586994835,0.24200297,1774.9,1774.8,11.04743768]
[1745586995630,0.24200297,1774.9,1774.8,5.413]
[1745586995928,0.24200297,1774.9,1774.8,11.04743768]
[1745586996127,0.24200297,1774.9,1774.8,12.71563546]
[1745586997265,0.05,1774.9,1774.8,13.51253546]
[1745586999739,0.24200297,1774.9,1774.8,12.71563546]
[1745587001307,0.24200297,1774.9,1774.8,7.08119778]
[1745587002357,0.39200297,1774.9,1774.8,5.413]
[1745587002667,0.39200297,1774.9,1774.6,5.63495277]
[1745587002997,0.39200297,1774.9,1774.7,5.405]
[1745587003498,0.19200297,1774.8,1774.7,5.405]
[1745587004685,0.05,1774.9,1774.8,5.63443768]
[1745587004885,0.05,1774.9,1774.8,7.37861696]
[1745587005149,0.05,1774.9,1774.8,8.14721696]
[1745587005739,1e-08,1774.9,1774.8,8.69721696]
[1745587006441,1e-08,1774.9,1774.8,9.11750852]
[1745587007229,1e-08,1774.9,1774.8,8.56750852]
[1745587007385,1e-08,1774.9,1774.8,9.11750852]
[1745587008428,1e-08,1774.9,1774.8,11.56750852]
[1745587008832,1e-08,1774.9,1774.8,8.56750852]
[1745587009124,1e-08,1774.9,1774.8,9.11750852]
[1745587010635,1e-08,1774.9,1774.8,8.56750852]
[1745587011339,1e-08,1774.9,1774.8,8.14721696]
[1745587015884,1e-08,1774.9,1774.8,8.69721696]
[1745587016078,1e-08,1774.9,1774.8,8.14721696]
[1745587017039,1e-08,1774.9,1774.8,8.69721696]
[1745587017664,1e-08,1774.9,1774.8,12.94823458]
[1745587021639,0.05,1775.9,1775.5,0.7607]
[1745587021844,0.05,1775.9,1775.8,5.63126478]
[1745587021845,0.24200297,1775.9,1775.8,5.63126478]
[1745587022820,0.05,1775.9,1775.8,6.75753548]
[1745587023333,0.05,1775.9,1775.8,7.55133548]
[1745587023937,0.05,1775.9,1775.8,6.75753548]
[1745587024304,0.05,1775.9,1775.8,5.63126478]
[1745587027949,0.24200297,1775.9,1775.8,5.63126478]
[1745587028108,0.05,1775.9,1775.8,5.63126478]
[1745587029943,0.05,1775.9,1775.7,5.63136147]
[1745587030117,0.19200297,1775.8,1775.7,5.63158191]
[1745587030312,0.19200297,1775.8,1775.6,27.93166583]
[1745587030530,0.19200297,1775.7,1775.6,27.93166583]
[1745587033047,0.34200297,1775.7,1775.6,22.3]
[1745587033441,0.45561175,1775.7,1775.6,22.3]
[1745587033609,0.30561175,1775.7,1775.6,22.3]
[1745587033813,0.30561175,1775.7,1775.6,27.93189907]
[1745587034140,0.19200297,1775.7,1775.6,27.93189907]
[1745587035957,0.19200297,1775.7,1775.0,2.02319686]
[1745587035958,0.19200297,1775.1,1774.9,0.8246]
[1745587036153,0.19200297,1775.1,1775.0,11.0286112]
[1745587037148,0.19200297,1775.1,1775.0,5.395]
[1745587037529,0.19200297,1775.1,1775.0,11.02880281]
[1745587039361,0.34200297,1775.1,1775.0,5.395]
[1745587039947,0.91034851,1775.1,1775.0,5.395]
[1745587043497,0.91034851,1775.1,1774.1,22.52957794]
[1745587043498,0.19200297,1774.4,1774.1,17.7152]
[1745587043677,0.19200297,1774.4,1774.3,5.63602547]
[1745587044488,0.19200297,1774.4,1774.2,11.03213135]
[1745587044693,0.19200297,1774.4,1774.3,1.10321314]
[1745587046277,0.19200297,1774.3,1774.2,5.396]
[1745587046668,0.19200297,1774.3,1774.2,11.03234314]
[1745587047078,0.19200297,1774.4,1774.3,5.63602547]
[1745587049902,0.19200297,1774.8,1774.7,5.63475516]
[1745587050109,0.19200297,1774.8,1774.7,11.03175516]
[1745587050407,0.19200297,1774.8,1774.7,5.397]
[1745587051007,0.19200297,1774.8,1774.7,5.397]
[1745587051873,0.34200297,1774.8,1774.7,5.397]
[1745587052600,0.19200297,1774.8,1774.7,11.03175516]
[1745587052909,0.19200297,1774.8,1774.7,7.06367278]
[1745587053111,0.19200297,1774.8,1774.7,5.397]
[1745587053712,0.19200297,1774.8,1774.7,11.03175516]
[1745587053887,0.19200297,1774.8,1774.7,5.397]
[1745587057383,0.19200297,1774.8,1774.7,11.03175516]
[1745587058480,6.0,1775.1,1774.7,11.03175516]
[1745587058481,0.19200297,1774.9,1774.8,5.63443768]
[1745587058728,0.19200297,1775.0,1774.9,5.63412023]
[1745587058929,0.19200297,1775.0,1774.9,6.45832023]
[1745587059082,0.19200297,1775.1,1775.0,5.63380281]
[1745587059406,0.19200297,1775.1,1775.0,11.02380281]
[1745587059793,0.19200297,1775.1,1775.0,5.39]
[1745587060024,0.19200297,1775.1,1775.0,11.02380281]
[1745587060193,0.19200297,1775.1,1775.0,12.689574]
[1745587060523,0.19200297,1775.1,1775.0,7.05577119]
[1745587060730,0.19200297,1775.1,1775.0,5.39]
[1745587061082,0.19200297,1775.1,1775.0,11.02380281]
[1745587061717,0.19200297,1775.3,1775.1,5.63348543]
[1745587061990,0.19200297,1775.2,1775.1,5.63348543]
[1745587062194,0.19200297,1775.3,1775.2,5.63316809]
[1745587062528,0.19200297,1775.3,1775.2,6.83659344]
[1745587063482,0.19200297,1775.3,1775.2,1.20342535]
[1745587063785,1.81950101,1775.6,1775.1,5.63330569]
[1745587063786,0.19200297,1775.2,1775.1,5.63330569]
[1745587065209,0.19200297,1775.2,1775.0,11.02366094]
[1745587065403,0.19200297,1775.1,1775.0,11.02380281]
[1745587068486,0.19200297,1775.1,1775.0,5.39]
[1745587068688,0.34200297,1775.1,1775.0,5.39]
[1745587070634,6.34200297,1775.1,1775.0,5.39]
[1745587071034,7.10130503,1775.1,1775.0,5.39]
[1745587072237,6.34200297,1775.1,1775.0,5.39]
[1745587073248,6.19200297,1775.1,1775.0,5.39]
[1745587073918,6.62367891,1775.1,1775.0,5.39]
[1745587074119,6.19200297,1775.1,1775.0,5.39]
[1745587074524,7.44302059,1775.1,1775.0,5.39]
[1745587074736,8.33732265,1775.1,1775.0,5.39]
[1745587075248,7.59302059,1775.1,1775.0,5.39]
[1745587076844,7.44302059,1775.1,1775.0,5.39]
[1745587077258,6.19200297,1775.1,1775.0,11.02380281]
[1745587078563,0.19200297,1775.1,1775.0,11.02380281]
[1745587078939,0.19200297,1775.2,1775.1,5.63348543]
[1745587079136,0.19200297,1775.2,1775.1,1.66572882]
[1745587080128,0.19200297,1775.1,1775.0,5.39]
[1745587081528,1.44302059,1775.1,1775.0,5.39]
[1745587082230,0.19200297,1774.7,1774.6,6.44187737]
[1745587082427,0.19200297,1774.7,1774.6,6.196]
[1745587082662,0.19200297,1774.7,1774.6,5.389]
[1745587083034,1.44302059,1774.7,1774.6,5.389]
[1745587083365,0.19200297,1774.7,1774.6,5.389]
[1745587084846,1.44302059,1774.7,1774.6,5.389]
[1745587086304,1.59302059,1774.7,1774.6,5.389]
[1745587086574,0.19200297,1774.2,1774.1,5.382]
[1745587086952,0.19200297,1774.2,1774.1,11.01866084]
[1745587087334,0.19200297,1774.2,1774.1,5.382]
[1745587088072,0.19200297,1774.2,1774.1,11.01866084]
[1745587088944,0.19200297,1774.2,1774.1,5.382]
[1745587089258,0.19200297,1774.2,1774.1,6.5640243]
[1745587089658,0.19200297,1774.2,1774.1,5.382]
[1745587090491,0.19200297,1774.2,1773.7,5.382]
[1745587090492,0.19200297,1773.8,1773.7,5.382]
[1745587091539,0.19200297,1773.8,1773.7,11.019932]
[1745587093084,0.19200297,1773.9,1773.8,5.63761416]
[1745587093243,0.19200297,1773.9,1773.8,6.41631416]
[1745587093443,0.19200297,1774.1,1774.0,0.7787]
[1745587093759,0.19200297,1774.1,1773.9,5.63729635]
[1745587093760,0.19200297,1774.4,1774.3,6.41472547]
[1745587094081,0.19200297,1774.4,1774.3,11.79772547]
[1745587095786,0.19200297,1774.7,1774.6,6.45587269]
[1745587095944,1.25101762,1775.1,1774.7,5.63475516]
[1745587095945,0.19200297,1774.8,1774.7,5.63475516]
[1745587096838,0.19200297,1774.7,1774.6,13.04799898]
[1745587097042,0.19200297,1774.7,1774.6,6.59212629]
[1745587097294,0.19200297,1774.7,1774.6,12.22719898]
[1745587097794,0.19200297,1774.9,1774.8,5.63443768]
[1745587098086,0.19200297,1774.9,1774.8,6.7613435]
[1745587098297,0.19200297,1774.9,1774.8,7.5495435]
[1745587098706,0.19200297,1775.0,1774.9,5.63412023]
[1745587098988,0.19200297,1775.2,1775.1,6.44488543]
[1745587102420,0.19200297,1775.3,1775.2,5.63316809]
[1745587102720,0.19200297,1775.3,1775.2,6.84097344]
[1745587104287,0.19200297,1775.3,1775.2,1.20780535]
[1745587104586,0.19200297,1775.2,1775.1,5.63329129]
[1745587105393,0.19200297,1775.1,1775.0,5.63366763]
[1745587105722,0.19200297,1775.0,1774.9,11.01695438]
[1745587106412,0.19200297,1775.1,1775.0,5.63380281]
[1745587107130,0.19200297,1775.3,1775.2,5.63316809]
[1745587107315,0.19200297,1775.4,1775.3,5.63285078]
[1745587108015,0.19200297,1775.5,1775.4,5.63253351]
[1745587108187,0.19200297,1775.6,1775.5,5.63221627]
[1745587108388,0.19200297,1775.6,1775.5,6.45041627]
[1745587109120,0.19200297,1775.6,1775.4,5.6323669]
[1745587109330,0.19200297,1775.5,1775.4,6.97420359]
[1745587110803,0.19200297,1775.6,1775.5,5.63221627]
[1745587111402,0.1875952,1775.6,1775.5,5.63221627]
[1745587112326,0.1875952,1775.8,1775.6,5.63189907]
[1745587112529,0.1875952,1775.7,1775.6,11.01289907]
[1745587112706,0.34501042,1775.7,1775.6,12.6774106]
[1745587113794,0.15741522,1775.7,1775.6,13.4954106]
[1745587114034,0.34501042,1775.7,1775.6,13.4954106]
[1745587114239,0.15741522,1775.7,1775.6,13.4954106]
[1745587114814,0.15741522,1775.7,1775.6,16.4954106]
[1745587115016,0.05,1775.9,1775.8,5.63126478]
[1745587115323,0.05,1775.9,1775.8,7.53973529]
[1745587115324,0.2375952,1775.9,1775.8,7.53973529]
[1745587115901,0.05,1775.9,1775.8,7.53973529]
[1745587116105,0.2375952,1775.9,1775.8,7.53973529]
[1745587119852,0.05,1775.9,1775.8,7.53973529]
[1745587120035,0.2375952,1775.9,1775.8,6.75753529]
[1745587121058,0.2375952,1775.9,1775.8,12.12853529]
[1745587122808,0.2375952,1775.9,1775.4,9.19564514]
[1745587122809,0.1875952,1775.5,1775.4,6.19564514]
[1745587123012,0.1875952,1775.5,1775.4,5.63240845]
[1745587123256,0.1875952,1775.5,1775.3,33.53032259]
[1745587123555,0.1875952,1775.4,1775.3,22.265]
[1745587123927,0.1875952,1775.4,1775.3,27.89785078]
[1745587124126,0.1875952,1775.4,1775.3,31.25093447]
[1745587124650,0.1875952,1775.4,1775.3,25.61808369]
[1745587125120,0.1875952,1775.4,1775.3,31.25093447]
[1745587125828,0.1875952,1775.4,1775.3,25.61808369]
[1745587126024,0.1875952,1775.4,1775.3,31.25093447]
[1745587127460,0.1875952,1775.5,1775.4,5.63253351]
[1745587127624,0.1875952,1775.5,1775.4,10.13268031]
[1745587130441,0.1875952,1775.6,1775.5,5.63221627]
[1745587131495,0.1875952,1775.7,1775.6,5.63189907]
[1745587131635,0.1875952,1775.8,1775.7,5.63158191]
[1745587131841,0.1875952,1775.8,1775.7,8.05783001]
[1745587132635,0.1875952,1775.8,1775.7,7.29503001]
[1745587134469,0.1875952,1775.8,1775.7,1.6634481]
[1745587134675,0.1875952,1775.8,1775.7,7.29503001]
[1745587135976,0.2375952,1775.9,1775.8,5.63126478]
[1745587136277,0.2375952,1775.9,1775.8,6.92389426]
[1745587138291,0.2375952,1775.9,1775.8,7.72849426]
[1745587139097,0.05,1775.9,1775.8,7.72849426]
[1745587144824,0.2375952,1775.9,1775.8,7.72849426]
[1745587146125,0.05,1775.9,1775.8,7.72849426]
[1745587146327,0.2375952,1775.9,1775.8,7.72849426]
[1745587148923,0.05,1775.9,1775.8,7.72849426]
[1745587155269,0.05,1775.9,1775.8,24.61549426]
[1745587159061,0.2375952,1775.9,1775.8,23.81089426]
[1745587160041,0.2375952,1775.9,1775.8,6.92389426]
[1745587161341,0.2375952,1775.9,1775.6,5.63177907]
[1745587161342,0.1875952,1775.8,1775.6,5.63177907]
[1745587161637,0.1875952,1775.8,1775.5,22.51799536]
[1745587161638,0.1875952,1775.6,1775.5,22.51799536]
[1745587161841,0.1875952,1775.6,1775.5,27.87999536]
[1745587162841,0.1875952,1775.7,1775.6,5.63189907]
[1745587163056,0.1875952,1775.7,1775.6,9.06044851]
[1745587165564,0.1875952,1775.8,1775.7,5.63158191]
[1745587166287,0.2375952,1775.9,1775.8,5.63126478]
[1745587166688,0.3375952,1775.7,1775.6,5.6317641]
[1745587167682,0.1875952,1775.7,1775.6,5.6317641]
[1745587167887,0.1875952,1775.7,1775.6,8.98294798]
[1745587172267,0.1875952,1775.7,1775.6,9.78154798]
[1745587172898,0.1875952,1775.8,1775.7,5.63158191]
[1745587176273,0.3375952,1775.8,1775.7,5.63158191]
[1745587176479,0.1875952,1775.7,1775.6,8.98285746]
[1745587177219,0.1875952,1775.6,1775.5,27.88002447]
[1745587177403,0.3375952,1775.6,1775.5,22.248]
[1745587178531,1.58861282,1775.6,1775.5,22.248]
[1745587178680,4.58861282,1775.6,1775.5,5.362]
[1745587184601,10.58861282,1775.6,1775.5,5.362]
[1745587185134,6.3375952,1775.6,1775.5,5.362]
[1745587185337,0.1875952,1775.6,1775.5,12.09364073]
[1745587186104,0.1875952,1775.7,1775.6,5.63189907]
[1745587186533,0.1875952,1775.8,1775.7,6.41208191]
[1745587186733,0.05,1775.9,1775.8,5.63126478]
[1745587187033,0.2375952,1775.9,1775.8,5.63126478]
[1745587187343,0.2375952,1775.9,1775.8,6.83559945]
[1745587189782,0.05,1775.9,1775.8,6.83559945]
[1745587190287,0.05,1775.9,1775.8,7.61199945]
[1745587194239,0.2375952,1775.9,1775.8,7.61199945]
[1745587194887,0.2375952,1775.9,1775.8,6.83559945]
[1745587199546,0.2375952,1775.9,1775.8,5.63126478]
[1745587200045,0.2375952,1775.9,1775.8,10.98526478]
[1745587202206,0.23204603,1775.9,1775.8,10.98526478]
[1745587202907,0.23204603,1775.9,1775.8,5.354]
[1745587203098,0.23204603,1775.9,1775.8,10.98526478]
[1745587203575,0.23204603,1775.9,1775.8,5.354]
[1745587203787,0.23204603,1775.9,1775.8,10.98526478]
[1745587204702,0.23204603,1775.9,1775.8,5.354]
[1745587204905,1.63306365,1775.9,1775.8,5.354]
[1745587205202,2.39637002,1775.9,1775.8,5.354]
[1745587205704,0.38204603,1775.9,1775.8,10.98526478]
[1745587207279,0.38204603,1775.9,1775.8,5.354]
[1745587207484,0.23204603,1775.9,1775.8,10.98526478]
[1745587208488,0.04445083,1775.9,1775.8,10.98526478]
[1745587208678,0.04445083,1775.9,1775.8,15.1262353]
[1745587212280,0.23204603,1775.9,1775.8,15.1262353]
[1745587214206,0.04445083,1775.9,1775.8,15.1262353]
[1745587214378,0.23204603,1775.9,1775.8,15.1262353]
[1745587214919,0.23204603,1775.9,1775.8,15.55079625]
[1745587216171,0.04445083,1775.9,1775.8,15.55079625]
[1745587217144,0.04445083,1775.9,1775.8,15.1262353]
[1745587217326,0.23204603,1775.9,1775.8,14.3361353]
[1745587219257,0.23204603,1775.9,1775.8,10.98526478]
[1745587226236,0.1875952,1775.6,1775.5,16.887]
[1745587226576,0.1875952,1775.6,1775.5,27.86421627]
[1745587231104,0.1875952,1775.6,1775.5,22.232]
[1745587231402,0.3375952,1775.6,1775.5,27.86421627]
[1745587231571,0.1875952,1775.6,1775.5,27.86421627]
[1745587231772,0.1875952,1775.6,1775.5,31.21387688]
[1745587235290,0.1875952,1775.6,1775.5,27.86421627]